fUSD/lending_fUSD_20240927
["ID","MTS","AMOUNT","RATE_DAILY","PERIOD"]
[339351681,1727459435234,-252.98,0.0001178,2]
[339351682,1727459435243,-500.0,0.0001178,2]
[339351683,1727459435252,-500.0,0.0001178,2]
[339351684,1727459435262,-500.0,0.0001178,2]
[339351685,1727459435271,-500.0,0.0001178,2]
[339351686,1727459435281,-500.0,0.0001178,2]
[339351687,1727459435292,-337.5,0.0001178,2]
[339351688,1727459435306,-500.0,0.0001178,2]
[339351689,1727459435315,-500.0,0.0001178,2]
[339351690,1727459435325,-366.21149104,0.0001178,2]
[339351691,1727459435335,-500.0,0.0001178,2]
[339351692,1727459435346,-500.0,0.0001178,2]
[339351693,1727459435355,-500.0,0.0001178,2]
[339351694,1727459435365,-500.0,0.0001178,2]
[339351695,1727459435376,-587.56,0.0001178,2]
[339351696,1727459435385,-500.0,0.0001178,2]
[339351697,1727459435395,-500.0,0.0001178,2]
[339351698,1727459435404,-500.0,0.0001178,2]
[339351699,1727459435413,-500.0,0.0001178,2]
[339351700,1727459435423,-500.0,0.0001178,2]
[339351701,1727459435432,-500.0,0.0001178,2]
[339351702,1727459435441,-264.64,0.0001178,2]
[339351703,1727459435450,-500.0,0.0001178,2]
[339351704,1727459435462,-500.0,0.0001178,2]
[339351705,1727459435471,-500.0,0.0001178,2]
[339351706,1727459435480,-500.0,0.0001178,2]
[339351707,1727459435490,-500.0,0.0001178,2]
[339351708,1727459435499,-500.0,0.0001178,2]
[339351709,1727459435508,-500.0,0.0001178,2]
[339351710,1727459435517,-500.0,0.0001178,2]
[339351711,1727459435527,-500.0,0.0001178,2]
[339351712,1727459435536,-209.8,0.0001178,2]
[339351713,1727459435545,-500.0,0.0001178,2]
[339351714,1727459435554,-500.0,0.0001178,2]
[339351715,1727459435565,-500.0,0.0001178,2]
[339351716,1727459435574,-500.0,0.0001178,2]
[339351717,1727459435583,-290.48,0.0001178,2]
[339351718,1727459435592,-500.0,0.0001178,2]
[339351719,1727459435601,-601.11325609,0.0001178,2]
[339351720,1727459435611,-500.0,0.0001178,2]
[339351721,1727459435621,-500.0,0.0001178,2]
[339351722,1727459435630,-1263.0,0.00011796,2]
[339351723,1727459435639,-625.0,0.00011796,2]
[339351724,1727459435648,-933.0,0.00011796,2]
[339351725,1727459435658,-810.0,0.00011796,2]
[339351726,1727459435667,-552.392,0.00011796,2]
[339351727,1727459435676,-1126.495,0.00011796,2]
[339351728,1727459435685,-699.64,0.00011796,2]
[339351729,1727459435695,-2947.105,0.00011796,2]
[339351730,1727459435706,-543.138,0.00011796,2]
[339351731,1727459435716,-150.0,0.00011796,2]
[339351732,1727459435726,-150.0,0.00011796,2]
[339351733,1727459435735,-150.0,0.00011796,2]
[339351734,1727459435745,-308.44,0.000118,2]
[339351735,1727459435755,-1011.3,0.000118,2]
[339351736,1727459435764,-150.0,0.00011823,2]
[339351737,1727459435774,-175.865698,0.00011869,2]
[339351738,1727459435783,-159.128364,0.00011869,2]
[339351739,1727459435792,-600.0,0.000119,4]
[339351740,1727459435801,-150.0,0.0001194,2]
[339351741,1727459435811,-150.0,0.00011957,2]
[339351742,1727459435820,-1200.0,0.00012,4]
[339351743,1727459435829,-150.0,0.00012018,2]
[339351744,1727459435839,-162.96,0.00012033,2]
[339351745,1727459435849,-500.0,0.00012049,2]
[339351746,1727459435858,-150.0,0.00012057,2]
[339351747,1727459435868,-159.128364,0.00012067,2]
[339351748,1727459435878,-1800.0,0.000121,4]
[339351749,1727459435888,-150.0,0.00012141,2]
[339351750,1727459435897,-150.0,0.00012174,2]
[339351751,1727459435906,-2400.0,0.000122,4]
[339351752,1727459435916,-155.0,0.0001224,2]
[339351753,1727459435926,-159.128364,0.00012265,2]
[339351754,1727459435935,-468.95,0.00012277,2]
[339351755,1727459435945,-150.0,0.00012291,2]
[339351756,1727459435956,-3000.0,0.000123,4]
[339351757,1727459435966,-150.0,0.00012325,2]
[339351758,1727459435976,-276.928,0.00012326,2]
[339351759,1727459435985,-500.0,0.00012327,2]
[339351760,1727459435995,-500.0,0.00012328,2]
[339351761,1727459436006,-400.0,0.00012389,2]
[339351762,1727459436016,-600.0,0.000124,4]
[339351763,1727459436026,-150.0,0.00012408,2]
[339351764,1727459436035,-181.95,0.00012445,2]
[339351765,1727459436045,-150.0,0.00012447,2]
[339351766,1727459436055,-158.791904,0.0001245,2]
[339351767,1727459436064,-159.128364,0.00012462,2]
[339351768,1727459436074,-600.0,0.000125,4]
[339351769,1727459436084,-10000.0,0.000125,2]
[339351770,1727459436094,-150.0,0.00012509,2]
[339351771,1727459436103,-150.0,0.00012526,2]
[339351772,1727459436113,-458.23,0.00012534,2]
[339351773,1727459436124,-162.96,0.00012544,2]
[339351774,1727459436134,-500.0,0.0001255,2]
[339351775,1727459436143,-500.0,0.0001255,2]
[339351776,1727459436154,-500.0,0.0001255,2]
[339351777,1727459436164,-500.0,0.0001255,2]
[339351778,1727459436173,-500.0,0.0001255,2]
[339351779,1727459436183,-500.0,0.0001255,2]
[339351780,1727459436193,-500.0,0.0001255,2]
[339351781,1727459436203,-500.0,0.0001255,2]
[339351782,1727459436213,-500.0,0.0001255,2]
[339351783,1727459436222,-569.07,0.0001255,2]
[339351784,1727459436233,-500.0,0.0001255,2]
[339351785,1727459436243,-500.0,0.0001255,2]
[339351786,1727459436253,-458.80003428,0.0001255,2]
[339351787,1727459436262,-627.48,0.0001255,2]
[339351788,1727459436273,-500.0,0.0001255,2]
[339351789,1727459436282,-500.0,0.0001255,2]
[339351790,1727459436291,-500.0,0.0001255,2]
[339351791,1727459436305,-500.0,0.0001255,2]
[339351792,1727459436315,-500.0,0.0001255,2]
[339351793,1727459436323,-600.0,0.000126,4]
[339351794,1727459436333,-150.0,0.00012643,2]
[339351795,1727459436343,-150.0,0.00012664,2]
[339351796,1727459436353,-500.0,0.00012675,2]
[339351797,1727459436362,-500.0,0.00012675,2]
[339351798,1727459436373,-500.0,0.00012675,2]
[339351799,1727459436382,-1578.94,0.00012675,2]
[339351800,1727459436391,-1212.74,0.00012675,2]
[339351801,1727459436400,-500.0,0.00012675,2]
[339351802,1727459436410,-694.02,0.00012675,2]
[339351803,1727459436420,-3724.78,0.00012675,2]
[339351804,1727459436429,-771.52,0.00012675,2]
[339351805,1727459436439,-1146.25,0.00012675,2]
[339351806,1727459436448,-14168.8856,0.0001268,2]
[339351807,1727459436465,-150.0,0.00012693,2]
[339351808,1727459436475,-600.0,0.000127,4]
[339351809,1727459436483,-16253.35370883,0.000127,2]
[339351810,1727459436492,-16253.35370879,0.00012711,2]
[339351811,1727459436502,-16253.35370879,0.00012722,2]
[339351812,1727459436511,-158.791904,0.00012725,2]
[339351813,1727459436520,-16253.35370879,0.00012733,2]
[339351814,1727459436530,-372.48644745,0.00012744,2]
[339351815,1727459436539,-1000.0,0.00012744,2]
[339351816,1727459436548,-16253.35370879,0.00012744,2]
[339351817,1727459436558,-255.0,0.00012753,2]
[339351818,1727459436568,-16253.35370879,0.00012756,2]
[339351819,1727459436578,-150.0,0.0001276,2]
[339351820,1727459436587,-16253.35370879,0.00012767,2]
[339351821,1727459436596,-150.23271,0.00012769,2]
[339351822,1727459436606,-500.0,0.00012776,2]
[339351823,1727459436616,-500.0,0.00012777,2]
[339351824,1727459436625,-500.0,0.00012777,2]
[339351825,1727459436635,-423.59844058,0.00012777,2]
[339351826,1727459436644,-500.0,0.00012777,2]
[339351827,1727459436654,-500.0,0.00012777,2]
[339351828,1727459436664,-500.0,0.00012777,2]
[339351829,1727459436674,-500.0,0.00012777,2]
[339351830,1727459436683,-500.0,0.00012777,2]
[339351831,1727459436693,-500.0,0.00012777,2]
[339351832,1727459436704,-500.0,0.00012777,2]
[339351833,1727459436714,-500.0,0.00012777,2]
[339351834,1727459436723,-500.0,0.00012777,2]
[339351835,1727459436732,-500.0,0.00012777,2]
[339351836,1727459436741,-500.0,0.00012777,2]
[339351837,1727459436751,-500.0,0.00012777,2]
[339351838,1727459436760,-16253.35370879,0.00012778,2]
[339351839,1727459436770,-500.0,0.00012778,2]
[339351840,1727459436780,-365.48058198,0.00012778,2]
[339351841,1727459436790,-500.0,0.00012778,2]
[339351842,1727459436800,-500.0,0.00012778,2]
[339351843,1727459436810,-500.0,0.00012778,2]
[339351844,1727459436819,-500.0,0.00012778,2]
[339351845,1727459436829,-1000.0,0.00012778,2]
[339351846,1727459436839,-254.95995142,0.00012779,2]
[339351847,1727459436848,-782.236794,0.0001278,2]
[339351848,1727459436858,-782.236794,0.0001278,2]
[339351849,1727459436867,-151.0,0.0001278,2]
[339351850,1727459436876,-151.0,0.0001278,2]
[339351851,1727459436886,-151.0,0.0001278,2]
[339351852,1727459436895,-192.515157,0.0001278,2]
[339351853,1727459436904,-360.326439,0.0001278,2]
[339351854,1727459436914,-360.326439,0.0001278,2]
[339351855,1727459436924,-155.599608,0.0001278,2]
[339351856,1727459436933,-434.56219,0.0001278,2]
[339351857,1727459436942,-434.56219,0.0001278,2]
[339351858,1727459436953,-500.0,0.00012794,2]
[339351859,1727459436962,-500.0,0.00012795,2]
[339351860,1727459436971,-200.0,0.00012795,2]
[339351861,1727459436980,-157.27815319,0.00012799,2]
[339351862,1727459436989,-318.29041278,0.00012799,2]
[339351863,1727459437000,-633.0,0.000128,4]
[339351864,1727459437010,-558.34757921,0.000128,2]
[339351865,1727459437019,-558.34757921,0.000128,2]
[339351866,1727459437029,-558.34757921,0.000128,2]
[339351867,1727459437039,-558.34757921,0.000128,2]
[339351868,1727459437048,-558.34757921,0.000128,2]
[339351869,1727459437058,-558.34757921,0.000128,2]
[339351870,1727459437067,-558.34757921,0.000128,2]
[339351871,1727459437075,-558.34757921,0.000128,2]
[339351872,1727459437085,-558.34757921,0.000128,2]
[339351873,1727459437094,-558.34757921,0.000128,2]
[339351874,1727459437103,-558.34757921,0.000128,2]
[339351875,1727459437113,-558.34757921,0.000128,2]
[339351876,1727459437123,-558.34757921,0.000128,2]
[339351877,1727459437132,-558.34757921,0.000128,2]
[339351878,1727459437141,-558.34757921,0.000128,2]
[339351879,1727459437150,-558.34757921,0.000128,2]
[339351880,1727459437159,-558.34757921,0.000128,2]
[339351881,1727459437169,-558.34757921,0.000128,2]
[339351882,1727459437179,-558.34757921,0.000128,2]
[339351883,1727459437189,-558.84,0.000128,2]
[339351884,1727459437198,-181.59058545,0.000128,2]
[339351885,1727459437209,-181.59058545,0.000128,2]
[339351886,1727459437219,-181.59058545,0.000128,2]
[339351887,1727459437228,-181.59058545,0.000128,2]
[339351888,1727459437238,-181.59058545,0.000128,2]
[339351889,1727459437247,-181.59058545,0.000128,2]
[339351890,1727459437257,-181.59058545,0.000128,2]
[339351891,1727459437266,-181.59058545,0.000128,2]
[339351892,1727459437276,-181.59058545,0.000128,2]
[339351893,1727459437285,-181.59058545,0.000128,2]
[339351894,1727459437295,-181.59058545,0.000128,2]
[339351895,1727459437307,-181.59058545,0.000128,2]
[339351896,1727459437317,-181.59058545,0.000128,2]
[339351897,1727459437326,-181.59058545,0.000128,2]
[339351898,1727459437336,-181.59058545,0.000128,2]
[339351899,1727459437346,-181.59058545,0.000128,2]
[339351900,1727459437355,-181.59058545,0.000128,2]
[339351901,1727459437365,-181.59058545,0.000128,2]
[339351902,1727459437375,-181.59058545,0.000128,2]
[339351903,1727459437385,-182.09,0.000128,2]
[339351904,1727459437395,-235.29227016,0.000128,2]
[339351905,1727459437404,-235.29227016,0.000128,2]
[339351906,1727459437414,-235.29227016,0.000128,2]
[339351907,1727459437423,-235.29227016,0.000128,2]
[339351908,1727459437432,-235.29227016,0.000128,2]
[339351909,1727459437441,-235.29227016,0.000128,2]
[339351910,1727459437451,-235.29227016,0.000128,2]
[339351911,1727459437460,-235.29227016,0.000128,2]
[339351912,1727459437470,-235.29227016,0.000128,2]
[339351913,1727459437480,-235.29227016,0.000128,2]
[339351914,1727459437489,-235.29227016,0.000128,2]
[339351915,1727459437499,-235.29227016,0.000128,2]
[339351916,1727459437508,-235.29227016,0.000128,2]
[339351917,1727459437517,-235.29227016,0.000128,2]
[339351918,1727459437526,-235.29227016,0.000128,2]
[339351919,1727459437535,-235.29227016,0.000128,2]
[339351920,1727459437545,-235.29227016,0.000128,2]
[339351921,1727459437554,-235.29227016,0.000128,2]
[339351922,1727459437563,-235.29227016,0.000128,2]
[339351923,1727459437573,-235.79,0.000128,2]
[339351924,1727459437582,-212.39098182,0.000128,2]
[339351925,1727459437591,-191.17550112,0.000128,2]
[339351926,1727459437601,-713.14214736,0.000128,2]
[339351927,1727459437610,-680.0,0.00012815,2]
[339351928,1727459437620,-311.27857499,0.00012835,2]
[339351929,1727459437629,-11887.04071878,0.0001287,2]
[339351930,1727459437638,-782.236794,0.0001287,2]
[339351931,1727459437648,-782.236794,0.0001287,2]
[339351932,1727459437658,-151.0,0.0001287,2]
[339351933,1727459437667,-168.982522,0.0001287,2]
[339351934,1727459437677,-151.0,0.0001287,2]
[339351935,1727459437687,-360.326439,0.0001287,2]
[339351936,1727459437697,-360.326439,0.0001287,2]
[339351937,1727459437707,-434.56219,0.0001287,2]
[339351938,1727459437716,-434.56219,0.0001287,2]
[339351939,1727459437726,-500.0,0.00012873,2]
[339351940,1727459437736,-500.0,0.00012873,2]
[339351941,1727459437745,-287.84635417,0.00012877,2]
[339351942,1727459437755,-289.73497318,0.00012877,2]
[339351943,1727459437949,-220.01238691,0.00012877,2]
[339351944,1727459437961,-154.41,0.00012889,2]
[339351945,1727459437971,-159.39020911,0.00012889,2]
[339351947,1727459437981,-500.0,0.0001289,2]
[339351948,1727459437990,-500.0,0.0001289,2]
[339351949,1727459438001,-500.0,0.0001289,2]
[339351950,1727459438011,-500.0,0.0001289,2]
[339351951,1727459438020,-8678.3252827,0.00012891,2]
[339351952,1727459438030,-4511.1833893,0.00012891,2]
[339351953,1727459438040,-75538.0159211,0.00012891,2]
[339351954,1727459438049,-3437.1359342,0.00012891,2]
[339351955,1727459438058,-179.99,0.00012893,2]
[339351956,1727459438068,-500.0,0.00012897,2]
[339351957,1727459438078,-500.0,0.00012897,2]
[339351958,1727459438088,-500.0,0.00012897,2]
[339351959,1727459438098,-500.0,0.00012897,2]
[339351960,1727459438107,-259.66635838,0.00012897,2]
[339351961,1727459438116,-500.0,0.00012897,2]
[339351962,1727459438126,-500.0,0.00012897,2]
[339351963,1727459438136,-500.0,0.00012897,2]
[339351964,1727459438145,-500.0,0.00012897,2]
[339351965,1727459438155,-500.0,0.00012897,2]
[339351966,1727459438164,-500.0,0.00012897,2]
[339351967,1727459438174,-500.0,0.00012897,2]
[339351968,1727459438184,-569.07,0.00012897,2]
[339351969,1727459438194,-500.0,0.00012897,2]
[339351970,1727459438205,-184.68,0.00012897,2]
[339351971,1727459438214,-500.0,0.00012897,2]
[339351972,1727459438223,-500.0,0.00012897,2]
[339351973,1727459438232,-501.50700605,0.00012897,2]
[339351974,1727459438241,-500.0,0.00012897,2]
[339351975,1727459438251,-500.0,0.00012897,2]
[339351976,1727459438261,-500.0,0.00012897,2]
[339351977,1727459438271,-500.0,0.00012897,2]
[339351978,1727459438280,-518.83999999,0.00012897,2]
[339351979,1727459438291,-627.48,0.00012897,2]
[339351980,1727459438305,-500.0,0.00012897,2]
[339351981,1727459438316,-500.0,0.00012897,2]
[339351982,1727459438325,-500.0,0.00012897,2]
[339351983,1727459438334,-500.0,0.00012897,2]
[339351984,1727459438346,-500.0,0.00012897,2]
[339351985,1727459438355,-500.0,0.00012897,2]
[339351986,1727459438366,-2000.0,0.00012898,2]
[339351987,1727459438375,-200.0,0.00012898,2]
[339351988,1727459438383,-200.0,0.00012898,2]
[339351989,1727459438392,-500.0,0.00012898,2]
[339351990,1727459438402,-500.0,0.00012898,2]
[339351991,1727459438411,-500.0,0.00012898,2]
[339351992,1727459438420,-500.0,0.00012898,2]
[339351993,1727459438429,-500.0,0.00012898,2]
[339351994,1727459438439,-500.0,0.00012898,2]
[339351995,1727459438449,-500.0,0.00012898,2]
[339351996,1727459438460,-636.15603462,0.00012898,2]
[339351997,1727459438470,-1000.0,0.00012898,2]
[339351998,1727459438479,-500.0,0.00012898,2]
[339351999,1727459438488,-500.0,0.00012898,2]
[339352000,1727459438498,-500.0,0.00012898,2]
[339352001,1727459438507,-500.0,0.00012898,2]
[339352002,1727459438517,-500.0,0.00012898,2]
[339352003,1727459438526,-500.0,0.00012898,2]
[339352004,1727459438535,-500.0,0.00012898,2]
[339352005,1727459438546,-500.0,0.00012898,2]
[339352006,1727459438555,-500.0,0.00012898,2]
[339352007,1727459438564,-500.0,0.00012898,2]
[339352008,1727459438573,-500.0,0.00012898,2]
[339352009,1727459438582,-500.0,0.00012898,2]
[339352010,1727459438592,-526.15900821,0.00012898,2]
[339352011,1727459438601,-500.0,0.00012898,2]
[339352012,1727459438611,-500.0,0.00012898,2]
[339352013,1727459438620,-500.0,0.00012898,2]
[339352014,1727459438629,-500.0,0.00012898,2]
[339352015,1727459438639,-569.07,0.00012898,2]
[339352016,1727459438649,-569.07,0.00012898,2]
[339352017,1727459438658,-500.0,0.00012898,2]
[339352018,1727459438667,-500.0,0.00012898,2]
[339352019,1727459438677,-500.0,0.00012898,2]
[339352020,1727459438686,-150.0,0.00012898,2]
[339352021,1727459438697,-500.0,0.00012898,2]
[339352022,1727459438710,-500.0,0.00012898,2]
[339352023,1727459438720,-150.0,0.00012898,2]
[339352024,1727459438729,-500.0,0.00012898,2]
[339352025,1727459438739,-500.0,0.00012898,2]
[339352026,1727459438748,-500.0,0.00012898,2]
[339352027,1727459438757,-500.0,0.00012898,2]
[339352028,1727459438767,-500.0,0.00012898,2]
[339352029,1727459438777,-500.0,0.00012898,2]
[339352030,1727459438785,-253.74,0.00012898,2]
[339352031,1727459438794,-1578.94,0.00012898,2]
[339352032,1727459438802,-1578.94,0.00012898,2]
[339352034,1727459438811,-1578.94,0.00012898,2]
[339352035,1727459438820,-1212.74,0.00012898,2]
[339352036,1727459438829,-1212.74,0.00012898,2]
[339352037,1727459438838,-1212.74,0.00012898,2]
[339352038,1727459438847,-500.0,0.00012898,2]
[339352039,1727459438856,-500.0,0.00012898,2]
[339352040,1727459438865,-500.0,0.00012898,2]
[339352041,1727459438875,-500.0,0.00012898,2]
[339352042,1727459438884,-500.0,0.00012898,2]
[339352043,1727459438893,-694.02,0.00012898,2]
[339352044,1727459438903,-694.02,0.00012898,2]
[339352045,1727459438912,-694.02,0.00012898,2]
[339352046,1727459438921,-3724.78,0.00012898,2]
[339352047,1727459438931,-3724.78,0.00012898,2]
[339352048,1727459438939,-3724.78,0.00012898,2]
[339352049,1727459438948,-101.07715432,0.00012898,2]
[339352050,1727459439261,-85.59520745,0.00012898,2]
[339352051,1727459439272,-440.80763823,0.00012898,2]
[339352052,1727459439282,-627.48,0.00012898,2]
[339352053,1727459439293,-268.05757942,0.00012898,2]
[339352054,1727459439310,-231.94242058,0.00012898,2]
[339352055,1727459439319,-502.32,0.00012898,2]
[339352056,1727459439329,-771.52,0.00012898,2]
[339352057,1727459439339,-771.52,0.00012898,2]
[339352058,1727459439349,-222.69757942,0.00012898,2]
[339352059,1727459439360,-468.35778133,0.00012898,2]
[339352060,1727459439495,-8.72659605,0.0001255,2]
[339352061,1727459439508,-304.93449139,0.0001255,2]
[339352062,1727459439519,-186.33891256,0.0001255,2]
[339352063,1727459439528,-500.0,0.0001255,2]
[339352064,1727459439538,-16253.35370879,0.00012789,2]
[339352065,1727459439548,-150.0,0.00012799,2]
[339352066,1727459439558,-500.0,0.00012897,2]
[339352067,1727459439567,-500.0,0.00012897,2]
[339352068,1727459439576,-80.46463925,0.00012898,2]
[339352069,1727459439586,-500.0,0.00012898,2]
[339352070,1727459439595,-500.0,0.00012898,2]
[339352071,1727459439605,-1146.25,0.00012898,2]
[339352072,1727459439614,-1146.25,0.00012898,2]
[339352073,1727459439624,-1146.25,0.00012898,2]
[339352074,1727459439633,-500.0,0.00012898,2]
[339352075,1727459439642,-500.0,0.00012898,2]
[339352076,1727459439651,-500.0,0.00012898,2]
[339352077,1727459439661,-500.0,0.00012898,2]
[339352078,1727459439670,-495.24543592,0.00012898,2]
[339352079,1727459439680,-500.0,0.00012898,2]
[339352080,1727459439689,-500.0,0.00012898,2]
[339352081,1727459439699,-500.0,0.00012898,2]
[339352082,1727459439714,-500.0,0.00012898,2]
[339352083,1727459439724,-500.0,0.00012898,2]
[339352084,1727459439733,-500.0,0.00012898,2]
[339352085,1727459439743,-500.0,0.00012898,2]
[339352086,1727459439752,-500.0,0.00012898,2]
[339352087,1727459439763,-598.0,0.00012899,2]
[339352088,1727459439772,-500.0,0.00012899,2]
[339352089,1727459439781,-218.93882618,0.00012899,2]
[339352090,1727459439790,-500.0,0.00012899,2]
[339352091,1727459439800,-500.0,0.00012899,2]
[339352092,1727459439809,-500.0,0.00012899,2]
[339352093,1727459439819,-500.0,0.00012899,2]
[339352094,1727459439828,-1202.06042744,0.00012899,2]
[339352095,1727459439838,-46641.11823132,0.00012899,2]
[339352113,1727459440041,-1296.82852113,0.00012899,2]
[339352115,1727459440052,-3962.55749776,0.00012899,2]
[339352117,1727459440063,-3110.01716113,0.00012899,2]
[339352118,1727459440074,-799.5914014,0.00012899,2]
[339352119,1727459440085,-186891.91250496,0.00012899,2]
[339352120,1727459440095,-7497.81250895,0.00012899,2]
[339352121,1727459440104,-151.0,0.00012899,2]
[339352122,1727459440113,-360.252418,0.00012899,2]
[339352123,1727459440122,-360.252418,0.00012899,2]
[339352124,1727459440132,-339.468495,0.00012899,2]
[339352125,1727459440141,-339.468495,0.00012899,2]
[339352126,1727459440150,-169.150973,0.00012899,2]
[339352127,1727459440159,-169.150973,0.00012899,2]
[339352128,1727459440169,-151.0,0.00012899,2]
[339352129,1727459440178,-151.0,0.00012899,2]
[339352130,1727459440187,-196.981127,0.00012899,2]
[339352131,1727459440196,-151.0,0.00012899,2]
[339352132,1727459440209,-151.0,0.00012899,2]
[339352133,1727459440219,-151.0,0.00012899,2]
[339352134,1727459440228,-624.211411,0.00012899,2]
[339352135,1727459440237,-624.211411,0.00012899,2]
[339352136,1727459440247,-248.74999,0.00012899,2]
[339352137,1727459440256,-248.74999,0.00012899,2]
[339352138,1727459440265,-197.488466,0.00012899,2]
[339352139,1727459440275,-260.135246,0.00012899,2]
[339352140,1727459440284,-260.135246,0.00012899,2]
[339352141,1727459440295,-151.0,0.00012899,2]
[339352142,1727459440308,-151.0,0.00012899,2]
[339352143,1727459440317,-151.0,0.00012899,2]
[339352144,1727459440327,-208.065473,0.00012899,2]
[339352145,1727459440338,-208.065473,0.00012899,2]
[339352147,1727459440347,-151.0,0.00012899,2]
[339352149,1727459440356,-526.689524,0.00012899,2]
[339352151,1727459440367,-526.689524,0.00012899,2]
[339352153,1727459440378,-151.0,0.00012899,2]
[339352155,1727459440388,-152.513249,0.00012899,2]
[339352157,1727459440398,-152.513249,0.00012899,2]
[339352159,1727459440407,-151.0,0.00012899,2]
[339352161,1727459440417,-151.0,0.00012899,2]
[339352163,1727459440427,-782.236794,0.00012899,2]
[339352165,1727459440436,-782.236794,0.00012899,2]
[339352167,1727459440445,-151.0,0.00012899,2]
[339352169,1727459440454,-151.0,0.00012899,2]
[339352171,1727459440466,-360.326439,0.00012899,2]
[339352173,1727459440475,-360.326439,0.00012899,2]
[339352175,1727459440484,-434.56219,0.00012899,2]
[339352177,1727459440493,-434.56219,0.00012899,2]
[339352179,1727459440502,-246.62,0.00012899,2]
[339352181,1727459440511,-500.0,0.00012899,2]
[339352183,1727459440521,-500.0,0.00012899,2]
[339352185,1727459440530,-500.0,0.00012899,2]
[339352187,1727459440539,-243.06,0.00012899,2]
[339352189,1727459440548,-362.1,0.00012899,2]
[339352191,1727459440557,-500.0,0.00012899,2]
[339352193,1727459440567,-264.88911234,0.00012899,2]
[339352194,1727459440576,-500.0,0.00012899,2]
[339352196,1727459440585,-500.0,0.00012899,2]
[339352198,1727459440595,-500.0,0.00012899,2]
[339352200,1727459440605,-500.0,0.00012899,2]
[339352202,1727459440615,-500.0,0.00012899,2]
[339352204,1727459440624,-500.0,0.00012899,2]
[339352206,1727459440634,-500.0,0.00012899,2]
[339352208,1727459440643,-500.0,0.00012899,2]
[339352210,1727459440652,-500.0,0.00012899,2]
[339352212,1727459440662,-500.0,0.00012899,2]
[339352214,1727459440671,-500.0,0.00012899,2]
[339352216,1727459440681,-500.0,0.00012899,2]
[339352218,1727459440691,-500.0,0.00012899,2]
[339352220,1727459440700,-174.1319116,0.00012899,2]
[339352222,1727459440713,-336.31,0.00012899,2]
[339352224,1727459440722,-500.0,0.00012899,2]
[339352226,1727459440732,-500.0,0.00012899,2]
[339352228,1727459440741,-500.0,0.00012899,2]
[339352230,1727459440751,-500.0,0.00012899,2]
[339352232,1727459440760,-500.0,0.00012899,2]
[339352234,1727459440769,-500.0,0.00012899,2]
[339352236,1727459440779,-500.0,0.00012899,2]
[339352238,1727459440788,-500.0,0.00012899,2]
[339352240,1727459440797,-500.0,0.00012899,2]
[339352242,1727459440806,-500.0,0.00012899,2]
[339352244,1727459440816,-500.0,0.00012899,2]
[339352246,1727459440825,-500.0,0.00012899,2]
[339352248,1727459440835,-639.84918855,0.00012899,2]
[339352250,1727459440845,-500.0,0.00012899,2]
[339352252,1727459440856,-500.0,0.00012899,2]
[339352254,1727459440866,-500.0,0.00012899,2]
[339352256,1727459440875,-500.0,0.00012899,2]